﻿Department,Expense Area,Date,Supplier,Transaction Number,Amount,Expense Type
Home Office,UKVIP - Visas Immigration & Passports,05/10/2023,SERVICE-DESIGN-NETWORK,1-UKVIP - Visas Immigration & Passports-54765-10-2023,547.65,The Cost Relates To Non-Catalogue Items Purchased For Mbtp Cross Cutting Team Business Need.
Home Office,UKVIP - Visas Immigration & Passports,05/10/2023,SERVICE-DESIGN-NETWORK,2-UKVIP - Visas Immigration & Passports-54765-10-2023,547.65,The Cost Relates To Non-Catalogue Items Purchased For Mbtp Cross Cutting Team Business Need.
Home Office,UKVIP - Visas Immigration & Passports,10/10/2023,KNOWLEDGE EXCHANGE GRO,3-UKVIP - Visas Immigration & Passports-90462-10-2023,904.62,L&D With An Approved Supplier
Home Office,UKVIP - Visas Immigration & Passports,10/10/2023,KNOWLEDGE EXCHANGE GRO,4-UKVIP - Visas Immigration & Passports-155176-10-2023,1551.76,L&D With An Approved Supplier
Home Office,UKVIP - Visas Immigration & Passports,17/10/2023,INSTRUCTUS,5-UKVIP - Visas Immigration & Passports-831-10-2023,831,Springboard Training.  
Home Office,UKBF - UK Border Force,03/10/2023,HYLSA CHURCHILL,6-UKBF - UK Border Force-51883000000000004-10-2023,518.83,This Transaction Was For A Set Of New Tyres For The Official Vehicle
Home Office,UKBF - UK Border Force,04/10/2023,AMAZON,8-UKBF - UK Border Force-52485-10-2023,524.85,10 X Bags Of Dry Dog Food
Home Office,UKBF - UK Border Force,05/10/2023,TOG PROPERTIES LIMITED,9-UKBF - UK Border Force-7446-10-2023,744.6,Office Space For Sboc Team Event - Pb1 Agreed.
Home Office,UKBF - UK Border Force,05/10/2023,WILLOWS PPAL,10-UKBF - UK Border Force-96204-10-2023,962.04,Vets Bill.
Home Office,UKBF - UK Border Force,05/10/2023,JOHNSON VALVES,11-UKBF - UK Border Force-555-10-2023,555,Order S108792 Sdnr Valve For Engineering Stores Inventory. Lrn 1269/23/24-Mtlu/Mf
Home Office,UKBF - UK Border Force,05/10/2023,JOHNSON VALVES,12-UKBF - UK Border Force-555-10-2023,555,"Order S10870, New Sdnr Valve For General Service Pump Overboard, Hmc Searcher Mser At Penzance Dry Dock. Lrn 1268/23/24-Searcher/Mf"
Home Office,UKBF - UK Border Force,06/10/2023,WILLETT HOUSE VETS LIMITED,13-UKBF - UK Border Force-68448-10-2023,684.48,Emergency Veterinary Treatment To Bf Man Search Dog Sully. Authorised.
Home Office,UKBF - UK Border Force,06/10/2023,NORTHSTAR SAFETY GROUP,14-UKBF - UK Border Force-24408-10-2023,2440.8,Safe+ Course
Home Office,UKBF - UK Border Force,09/10/2023,WHITE CLIFFS VETERINAR,15-UKBF - UK Border Force-72315-10-2023,723.15,Veterinary Monthly Vet Bill For Detector Dogs Dover
Home Office,UKBF - UK Border Force,09/10/2023,COMPASS CONTRACT SERVI,16-UKBF - UK Border Force-600-10-2023,600, Wildlife Protection Conference
Home Office,UKBF - UK Border Force,09/10/2023,WILLETT HOUSE VETS LIMITED,17-UKBF - UK Border Force-88015-10-2023,880.15,Heathrow Dog Unit August Vet Bill
Home Office,UKBF - UK Border Force,10/10/2023,SAFEOPTIONSK,18-UKBF - UK Border Force-73531-10-2023,735.31,New Lockers For Staff
Home Office,UKBF - UK Border Force,10/10/2023,TROPHYSTOREK LIMI,19-UKBF - UK Border Force-960-10-2023,960,Trophies For Europe Achievement Awards Nov 2023
Home Office,UKBF - UK Border Force,11/10/2023,FLASHBAY LIMITED,20-UKBF - UK Border Force-95654-10-2023,956.54,Branded Gifts For Liaison And Staff Events Sboc: Cassiope
Home Office,UKBF - UK Border Force,11/10/2023,LADDERSK,21-UKBF - UK Border Force-70396-10-2023,703.96,Ladder For Operational Examination Purposes
Home Office,UKBF - UK Border Force,11/10/2023,SQ  ULTIMAT DEFENCE LI,22-UKBF - UK Border Force-5766-10-2023,576.6,Training Batons For Sbt Training.
Home Office,UKBF - UK Border Force,11/10/2023,SumUp   Translate UK L,26-UKBF - UK Border Force-720-10-2023,720,Rare Language Interpreter Used As Big Word Could Not Provide One
Home Office,UKBF - UK Border Force,11/10/2023,VETS-NOW,27-UKBF - UK Border Force-101995-10-2023,1019.95,Emergency Veterinary Care
Home Office,UKBF - UK Border Force,11/10/2023,PORTLAND VETS - HORLEY,28-UKBF - UK Border Force-129611-10-2023,1296.11,Veterinary Treatment For Detector Dogs In Training
Home Office,UKBF - UK Border Force,11/10/2023,FOCUS REFERRALS,29-UKBF - UK Border Force-248375-10-2023,2483.75,Veterinary Surgery For A Border Force Detector Dog
Home Office,UKBF - UK Border Force,11/10/2023,NORTHSTAR SAFETY GROUP,30-UKBF - UK Border Force-5292-10-2023,529.2,Safe Training Course Prior To Delivering Training In Ecuador.
Home Office,UKBF - UK Border Force,12/10/2023,SP METAL CAGES AND P,31-UKBF - UK Border Force-5028-10-2023,502.8,Items For Operational Examination Purposes
Home Office,UKBF - UK Border Force,12/10/2023,OCS MANSTON RETAIL,32-UKBF - UK Border Force-924-10-2023,924,This Is The Payment For Food And Drink Provided For A Cross Departmental And Multi-Agency Table Top Exercise.
Home Office,UKBF - UK Border Force,12/10/2023,ZOOPLUS,33-UKBF - UK Border Force-92921-10-2023,929.21,"10 X 15Kg James Wellbeloved Dog Food Required For Daily Dietary Requirements, 8 X 36X390G Nature Diet Wet Dog Food Required For Daily Dietary Requirements, 1 X 12Kg Arden Grange Sensitive Dry Dog Food For Dogs With Sensitive Stomachs"
Home Office,UKBF - UK Border Force,12/10/2023,NORTHSTAR SAFETY GROUP,34-UKBF - UK Border Force-24408-10-2023,2440.8,"Safe+ Training, Po Not An Option"
Home Office,UKBF - UK Border Force,13/10/2023,WHITE CLIFFS VETERINAR,35-UKBF - UK Border Force-274983-10-2023,2749.83,Veterinary Treatment For Detector Dogs In Training Dover
Home Office,UKBF - UK Border Force,13/10/2023,B&M 532 - YEADING,36-UKBF - UK Border Force-61769-10-2023,617.69,Israel Op Tarlac Response For Kit And Equipment
Home Office,UKBF - UK Border Force,13/10/2023,Decathlon,37-UKBF - UK Border Force-56486-10-2023,564.86,Israel Op Tarlac Response For Kit And Equipment
Home Office,UKBF - UK Border Force,13/10/2023,Decathlon,38-UKBF - UK Border Force-70989-10-2023,709.89,Israel Op Tarlac Response For Kit And Equipment
Home Office,UKBF - UK Border Force,16/10/2023,rentalcars.com,39-UKBF - UK Border Force-60713-10-2023,607.13,Urgent Deployment Of Staff To Lca For Operation
Home Office,UKBF - UK Border Force,16/10/2023,ET CAR HIRE,40-UKBF - UK Border Force-73975-10-2023,739.75,Urgent Car Hire In Larnaca Following Deployment At Short Notice Of Staff
Home Office,UKBF - UK Border Force,16/10/2023,SURVITEC,41-UKBF - UK Border Force-5000-10-2023,5000,"Solas Equipment
1230/23/24/Defender/Ah"
Home Office,UKBF - UK Border Force,16/10/2023,ATLANTICA OSASIS&GARDE,42-UKBF - UK Border Force-695227-10-2023,6952.27,"Large Group Booking At Atlantica Oasis, Ctm Unable To Book"
Home Office,UKBF - UK Border Force,17/10/2023,MIKE BEER TRANSPORT LI,43-UKBF - UK Border Force-7155-10-2023,715.5,This Purchase Was To Move A Number Of Training Vehicles That Are Used For Search Of Vehicle Training To A Different Area Of The Compound Ready For Building Work That Is Due To Take Place
Home Office,UKBF - UK Border Force,17/10/2023,POSTURITE LIMITED,44-UKBF - UK Border Force-205867-10-2023,2058.67,Dse Equipment Purchased For Jobholder Working From Home. Authority Was Received For A Temporary Uplift In Credit Limit To Enable This Purchase. The Requisite Specific Equipment Was Not Available In Full On Metis.
Home Office,UKBF - UK Border Force,18/10/2023,ARGOSK,52-UKBF - UK Border Force-53695-10-2023,536.95,This Transaction Was For A Sofa For Our Customs Kitchen/Break Room.
Home Office,UKBF - UK Border Force,18/10/2023,SumUp   Translate UK L,53-UKBF - UK Border Force-540-10-2023,540,The Transaction Listed Is For A Translation/Interpreter Service Provided By A Company Called Translate Uk – We Use This Service Occasionally For Languages Not Available Via Our Usual Supplier In Emergencies.
Home Office,UKBF - UK Border Force,18/10/2023,SQ  NORTH STAR SAFETY,54-UKBF - UK Border Force-660-10-2023,660,Safe Top Up Course
Home Office,UKBF - UK Border Force,19/10/2023,OCS MANSTON RETAIL,55-UKBF - UK Border Force-798-10-2023,798, This Is The Payment For Food And Drink Provided For A Cross Departmental And Multi-Agency Table Top Exercise.
Home Office,UKBF - UK Border Force,19/10/2023,ET CAR HIRE,56-UKBF - UK Border Force-69856-10-2023,698.56,Urgent Car Hire Following Deployment Of Staff To Larnaca
Home Office,UKBF - UK Border Force,19/10/2023,AMAZON,57-UKBF - UK Border Force-104086-10-2023,1040.86,Israel Op Tarlac Response For Kit And Equipment
Home Office,UKBF - UK Border Force,20/10/2023,LVL-VRCC/SOUTHFIELDS,58-UKBF - UK Border Force-1800-10-2023,1800,Veterinary Treatment For Dd In Training Tara
Home Office,UKBF - UK Border Force,20/10/2023,CHALLENGE COINS UK LIMITED,59-UKBF - UK Border Force-744-10-2023,744,Order Of Irdt Uniform Patches
Home Office,UKBF - UK Border Force,23/10/2023,BRITISH A,60-UKBF - UK Border Force-55222-10-2023,552.22,"Op Tarlac, Israel Crisis Flight For Staff Returning Home."
Home Office,UKBF - UK Border Force,23/10/2023,ATLANTICA MIRAMARE HOT,61-UKBF - UK Border Force-279737-10-2023,2797.37," Op Tarlac, Israel Crisis For Staff Deployed On Operations Needing Accommodation"
Home Office,UKBF - UK Border Force,23/10/2023,ET CAR HIRE,62-UKBF - UK Border Force-59346-10-2023,593.46,Car Hire Extension Due To Operational Deployment Extension
Home Office,UKBF - UK Border Force,23/10/2023,JOHNSON VALVES,63-UKBF - UK Border Force-720-10-2023,720,"Bronze Marine Screw Down Non Return Valve Hmc Seeker Bilge System, Urgent Replacement. Lrn1385/23/24-Seeker/Mf"
Home Office,UKBF - UK Border Force,24/10/2023,ZAFETY SUPPLIES LIMITED,66-UKBF - UK Border Force-1000-10-2023,1000,Upload Failed. Personal Trauma Kit. Auth So. Payment 1/3
Home Office,UKBF - UK Border Force,25/10/2023,NUPSALA LIMITED,67-UKBF - UK Border Force-8205-10-2023,820.5,"Detector Dog Clinical Medication And Injections At Nupsala Clinic, Requested By National Dog Team (National Operations)"
Home Office,UKBF - UK Border Force,25/10/2023,ZAFETY SUPPLIES LIMITED,68-UKBF - UK Border Force-1000-10-2023,1000,Upload Failed. Personal Trauma Kit. Auth So. Payment 2/3
Home Office,UKBF - UK Border Force,26/10/2023,Sharp & Enright,69-UKBF - UK Border Force-558-10-2023,558,3Xwet Weather Jackets For Outdoor Operations (In Cr Rm)
Home Office,UKBF - UK Border Force,26/10/2023,AMAZON,70-UKBF - UK Border Force-5244-10-2023,524.4,Equipment To Monitor Functionality And Enhance Dtl Projects
Home Office,UKBF - UK Border Force,26/10/2023,NORTHSTAR SAFETY GROUP,71-UKBF - UK Border Force-8136-10-2023,813.6,This Is For Training For Staff To Be Deployed To Overseas Crisis
Home Office,UKBF - UK Border Force,30/10/2023,Sharp & Enright,74-UKBF - UK Border Force-5384-10-2023,538.4,"Purchase Of 7 Gil Wet Weather Jackets And 2 Pairs Of Gil Wet Weather Trousers From Sharp & Enright In Dover, Required For Working In Inclement Weather.  Invoice Total = £1538.40.  Paid In Two Transactions Of £1000 & £538.40."
Home Office,UKBF - UK Border Force,30/10/2023,Sharp & Enright,75-UKBF - UK Border Force-1000-10-2023,1000,"Purchase Of 7 Gil Wet Weather Jackets And 2 Pairs Of Gil Wet Weather Trousers From Sharp & Enright In Dover, Required For Working In Inclement Weather.  Invoice Total = £1538.40.  Paid In Two Transactions Of £1000 & £538.40."
Home Office,UKBF - UK Border Force,30/10/2023,PETSATHOME,76-UKBF - UK Border Force-61409-10-2023,614.09,Stores And Supplies For Bf Detector Dogs Manchester 
Home Office,UKIE - Immigration Enforcement,05/10/2023,HOUNSLOW GOLF PARK,80-UKIE - Immigration Enforcement-540-10-2023,540,Wl Ice Team Building Event
Home Office,UKIE - Immigration Enforcement,25/10/2023,Royal Norfolk & Suffol,82-UKIE - Immigration Enforcement-55648-10-2023,556.48,The Transaction Was To Pay The Invoice From The Yacht Club For Mooring Fees
Home Office,UKIE - Immigration Enforcement,27/10/2023,SumUp   Creative Logis,83-UKIE - Immigration Enforcement-900-10-2023,900,Carrier Fees For An Intel Event
Home Office,UKVIP - Visas Immigration & Passports,12/10/2023,Adobe.com,84-UKVIP - Visas Immigration & Passports-89266-10-2023,892.66,Specialised Software For Non Networked Stand Alone Laptop Used For Media
Home Office,UKVIP - Visas Immigration & Passports,13/10/2023,DEFIBSHOPK,85-UKVIP - Visas Immigration & Passports-930-10-2023,930,Fully Automatic De-Fib Required To Replace Existing Broken Machine. Only Semi Auto Available Through Catalogues. No Staff Trained On Semi Automatic De-Fibs. Requested By Estates Management And Senior First Aiders. Gpc Use Approved By Wpm Heo Vd.
Home Office,COMMS - Communications Directorate,11/10/2023,SP HELIGUY,86-COMMS - Communications Directorate-7495-10-2023,749.5,Photography/Filming Training Course
Home Office,HSG - Homeland Security Group,11/10/2023,TSO SHOP  ID-7561207,88-HSG - Homeland Security Group-96954-10-2023,969.54,Ns Act Print
Home Office,HSG - Homeland Security Group,11/10/2023,TSO SHOP  ID-7561203,89-HSG - Homeland Security Group-99316-10-2023,993.16,Ns Act Print
Home Office,HSG - Homeland Security Group,11/10/2023,WILMINGTONK,91-HSG - Homeland Security Group-9552-10-2023,955.2,Ld Training (Cf
Home Office,HSG - Homeland Security Group,20/10/2023,KAPLAN FINANCIAL LIMITED,94-HSG - Homeland Security Group-836-10-2023,836,Cima Training For Rj
Home Office,CD - Corporate & Delivery,11/10/2023,SP THE SIGN SHED,99-CD - Corporate & Delivery-952-10-2023,952,"Cctv Images Being Monitored Sign × 200
A4 (210 X 297 Mm) / 3Mm Recycled Plastic / No Fixings
 Qgvvl1Ik (-£512.00) 
£1,464.00 
£952.00"
Home Office,CD - Corporate & Delivery,11/10/2023,SP THE SIGN SHED,100-CD - Corporate & Delivery-769-10-2023,769,"Cctv Images Being Monitored Sign × 200
A4 (210 X 297 Mm) / 3Mm Recycled Plastic / No Fixings
 Qgvvl1Ik (-£512.00) 
£1,464.00 
£952.00 

	Subtotal 	£952.00 
Shipping 	£0.00 
Gb Vat 	£158.67 
Total 	£952.00 Gbp 
You Saved £512.00"
Home Office,CD - Corporate & Delivery,31/10/2023,SP THE SIGN SHED,101-CD - Corporate & Delivery-540-10-2023,540,"Order Summary
	Custom 'Public Caller Units' Full Colour Sticker, 210X297Mm (A4), Self Adhesive Vinyl Sticker × 100	£540.00 

	Subtotal 	£540.00 
Shipping 	£0.00 
Gb Vat 	£90.00 
Total 	£540.00 Gbp"
Home Office,CD - Corporate & Delivery,31/10/2023,SP THE SIGN SHED,102-CD - Corporate & Delivery-54695-10-2023,546.95,"Order Summary
	Custom 'Staff Receptions' Sticker, 210X297Mm (A4), Self Adhesive Vinyl Sticker × 100	£540.00 

	Subtotal 	£540.00 
Shipping 	£6.95 
Gb Vat 	£91.16 
Total 	£546.95 Gbp"
